fUST/lending_fUST_20251207
["ID","MTS","AMOUNT","RATE_DAILY","PERIOD"]
[396761734,1765107032459,-2745.42860701,4.496e-05,2]
[396761736,1765107032470,-512.08208021,4.496e-05,2]
[396761737,1765107032504,-964.1050055,4.496e-05,2]
[396761738,1765107032516,-1466.98314437,4.496e-05,2]
[396761739,1765107032527,-426.34100583,4.496e-05,2]
[396761769,1765107038617,-412.0,4.496e-05,2]
[396761777,1765107038673,-889.62,4.496e-05,2]
[396761779,1765107038685,-25239.5996,4.496e-05,2]
[396761785,1765107038738,-8518.19901842,4.496e-05,2]
[396761788,1765107038749,-314.4785267,4.496e-05,2]
[396761987,1765107040844,-5090.23965239,4.496e-05,2]
[396762073,1765107041641,-3e-08,4.496e-05,2]
[396762075,1765107041652,-34605.04378751,4.496e-05,2]
[396762281,1765107043810,-388.44326117,4.496e-05,2]
[396762282,1765107043822,-476.59,4.496e-05,2]
[396762283,1765107043848,-1158.63077934,4.496e-05,2]
[396764025,1765107062448,300.0,4.495e-05,2]
[396764610,1765107122434,300.0,4.495e-05,2]
[396764611,1765107179936,1200.0,4.495e-05,2]
[396764612,1765107182349,300.0,4.495e-05,2]
[396764613,1765107242329,300.0,4.495e-05,2]
[396764614,1765107302737,300.0,4.495e-05,2]
[396764615,1765107303869,162.0,4.495e-05,2]
[396764617,1765107309052,1200.0,4.495e-05,2]
[396764618,1765107362670,300.0,4.495e-05,2]
[396764619,1765107422765,300.0,4.495e-05,2]
[396764641,1765107482780,300.0,4.495e-05,2]
[396764642,1765107542424,300.0,4.495e-05,2]
[396764643,1765107602254,300.0,4.495e-05,2]
[396764644,1765107609038,31.14114669,4.495e-05,2]
[396764645,1765107609311,1168.85885331,4.495e-05,2]
[396764646,1765107662645,300.0,4.495e-05,2]
[396764647,1765107705056,502.4,0.0001312,6]
[396764648,1765107722360,300.0,4.495e-05,2]
[396764649,1765107758133,8231.15114669,4.396e-05,2]
[396764650,1765107758160,10000.01,4.396e-05,2]
[396764651,1765107758190,10000.01,4.396e-05,2]
[396764652,1765107758216,6407.96782082,4.396e-05,2]
[396764653,1765107783011,-1494.0145443,4.53e-05,2]
[396764654,1765107783142,-2988.0290886,4.53e-05,2]
[396764655,1765107783331,-4023.9518228,4.53e-05,2]
[396764657,1765107990284,-443.58667878,4.774e-05,2]
[396764658,1765107992478,-173.64931978,4.774e-05,2]
[396764659,1765108143074,250.0,4.773e-05,2]
[396764660,1765108168053,-8.39903454,4.774e-05,2]
[396764661,1765108168081,-2230.315306,4.997e-05,2]
[396764662,1765108168110,-1200.0,4.999e-05,2]
[396764663,1765108168136,-300.0,4.999e-05,2]
[396764664,1765108168165,-607.4254047,5e-05,2]
[396764665,1765108168193,-607.4254047,5e-05,2]
[396764666,1765108168571,-607.4254047,5e-05,2]
[396764667,1765108168601,-607.4254047,5e-05,2]
[396764668,1765108168630,-500.0,5e-05,2]
[396764669,1765108168666,-500.0,5e-05,2]
[396764670,1765108168696,-500.0,5e-05,2]
[396764671,1765108168725,-500.0,5e-05,2]
[396764672,1765108168755,-500.0,5e-05,2]
[396764673,1765108168784,-500.0,5e-05,2]
[396764674,1765108168815,-500.0,5e-05,2]
[396764675,1765108168843,-70.3083812,5e-05,2]
[396764676,1765108168948,-429.6916188,5e-05,2]
[396764677,1765108168979,-500.0,5e-05,2]
[396764678,1765108169007,-500.0,5e-05,2]
[396764679,1765108169037,-500.0,5e-05,2]
[396764680,1765108169066,-500.0,5e-05,2]
[396764681,1765108169093,-460.52800651,5e-05,2]
[396764682,1765108169121,-500.0,5e-05,2]
[396764683,1765108169150,-500.0,5e-05,2]
[396764684,1765108169178,-500.0,5e-05,2]
[396764685,1765108169207,-500.0,5e-05,2]
[396764686,1765108178783,-500.0,5e-05,2]
[396764687,1765108178814,-282.55266833,5e-05,2]
[396764688,1765108178843,-500.0,5e-05,2]
[396764689,1765108178871,-500.0,5e-05,2]
[396764690,1765108178901,-252.52650491,5e-05,2]
[396764691,1765108178929,-500.0,5e-05,2]
[396764692,1765108178960,-500.0,5e-05,2]
[396764693,1765108178989,-500.0,5e-05,2]
[396764694,1765108179018,-500.0,5e-05,2]
[396764695,1765108179048,-500.0,5e-05,2]
[396764696,1765108179076,-429.85165352,5e-05,2]
[396764697,1765108187901,-70.14834648,5e-05,2]
[396764698,1765108187930,-500.0,5e-05,2]
[396764699,1765108187959,-500.0,5e-05,2]
[396764700,1765108187988,-500.0,5e-05,2]
[396764701,1765108188019,-500.0,5e-05,2]
[396764702,1765108188052,-500.0,5e-05,2]
[396764703,1765108188080,-500.0,5e-05,2]
[396764704,1765108188109,-500.0,5e-05,2]
[396764705,1765108188136,-500.0,5e-05,2]
[396764706,1765108188164,-500.0,5e-05,2]
[396764707,1765108188191,-359.71330704,5e-05,2]
[396764708,1765108188445,-140.28669296,5e-05,2]
[396764709,1765108188475,-500.0,5e-05,2]
[396764710,1765108188504,-500.0,5e-05,2]
[396764711,1765108188530,-410.02839226,5e-05,2]
[396764712,1765108188558,-500.0,5e-05,2]
[396764713,1765108188587,-500.0,5e-05,2]
[396764714,1765108188615,-500.0,5e-05,2]
[396764715,1765108188645,-500.0,5e-05,2]
[396764716,1765108188675,-500.0,5e-05,2]
[396764717,1765108188709,-500.0,5e-05,2]
[396764718,1765108188738,-399.37982956,5e-05,2]
[396764719,1765108188861,-100.62017044,5e-05,2]
[396764720,1765108188893,-500.0,5e-05,2]
[396764721,1765108188925,-499.99999999,5e-05,2]
[396764722,1765108188953,-500.0,5e-05,2]
[396764723,1765108188985,-500.0,5e-05,2]
[396764724,1765108189013,-500.0,5e-05,2]
[396764725,1765108189040,-500.0,5e-05,2]
[396764726,1765108189070,-500.0,5e-05,2]
[396764727,1765108189097,-500.0,5e-05,2]
[396764728,1765108189126,-600.0,5e-05,2]
[396764729,1765108189370,-248.54493681,5e-05,2]
[396764730,1765108189443,-1528.85088072,5e-05,2]
[396764731,1765108211753,2230.315306,4.997e-05,2]
[396764764,1765108231720,-267.64421804,5.363e-05,2]
[396764766,1765108231775,-32.35578196,5.363e-05,2]
[396764767,1765108231786,-580.85309865,5.363e-05,2]
[396765226,1765108243160,-82.23087448,5.363e-05,2]
[396765507,1765108245931,-536.91602687,5.363e-05,2]
[396765509,1765108245940,-1359.0,5.364e-05,2]
[396765511,1765108245949,-162.706,5.364e-05,2]
[396765514,1765108245959,-2155.0,5.364e-05,2]
[396765516,1765108245968,-250.0,5.49e-05,2]
[396765518,1765108245978,-1897.9441282,5.503e-05,2]
[396765520,1765108245987,-500.0,5.544e-05,2]
[396765522,1765108245996,-500.0,5.544e-05,2]
[396765524,1765108246005,-500.0,5.544e-05,2]
[396765526,1765108246014,-193.77921954,5.544e-05,2]
[396765528,1765108246023,-2312.83697232,5.545e-05,2]
[396765530,1765108246032,-304.4747684,5.55e-05,2]
[396765532,1765108246041,-423.4885772,5.72e-05,2]
[396765534,1765108246051,-596.8430889,5.753e-05,2]
[396765536,1765108246060,-301.9689207,5.753e-05,2]
[396765538,1765108246069,-196.313032,5.777e-05,2]
[396765540,1765108246078,-449.58403507,5.78e-05,2]
[396765542,1765108246087,-2209.73695358,5.782e-05,2]
[396765544,1765108246096,-2209.73695358,5.782e-05,2]
[396765546,1765108246105,-655.46890437,5.782e-05,2]
[396767311,1765108271309,500.0,5e-05,2]
[396767312,1765108296068,1500.0,5e-05,2]
[396767314,1765108325545,392.0,0.000174,60]
[396767315,1765108325571,1183.34,0.000174,60]
[396767316,1765108358067,1000.0,5e-05,2]
[396767317,1765108365655,546.68386414,5e-05,2]
[396767323,1765108632116,10000.01,4.819e-05,2]
[396767324,1765108632139,371.2134965,4.819e-05,2]
[396767341,1765108835876,215.1055167,4.779e-05,2]
[396767345,1765109110297,1367.2364343,0.000211,99]
[396767346,1765109180066,-484.0,5.414e-05,2]
[396767347,1765109180087,-2155.0,5.416e-05,2]
[396767348,1765109180108,-187.488,5.416e-05,2]
[396767349,1765109180129,-415.0,5.416e-05,2]
[396767350,1765109180150,-617.03416386,5.453e-05,2]
[396767351,1765109180172,-200.0,5.49e-05,2]
[396767352,1765109180194,-300.0,5.678e-05,2]
[396767353,1765109180215,-1200.0,5.679e-05,2]
[396767354,1765109180239,-1875.95183846,5.679e-05,2]
[396767355,1765109180263,-1875.95183846,5.679e-05,2]
[396767356,1765109180288,-1875.95183846,5.679e-05,2]
[396767357,1765109180311,-1875.95183846,5.679e-05,2]
[396767358,1765109180335,-1875.95183846,5.679e-05,2]
[396767359,1765109180362,-1875.95183846,5.679e-05,2]
[396767360,1765109180387,-1875.95183846,5.679e-05,2]
[396767361,1765109180412,-1875.95183846,5.679e-05,2]
[396767362,1765109180437,-1875.95183846,5.679e-05,2]
[396767363,1765109180460,-1875.95183846,5.679e-05,2]
[396767364,1765109180483,-1875.95183846,5.679e-05,2]
[396767365,1765109180507,-1875.95183846,5.679e-05,2]
[396767366,1765109180532,-1875.95183846,5.679e-05,2]
[396767367,1765109180557,-1875.95183846,5.679e-05,2]
[396767368,1765109180582,-1875.95183846,5.679e-05,2]
[396767369,1765109180607,-1875.95183846,5.679e-05,2]
[396767370,1765109180631,-1875.95183846,5.679e-05,2]
[396767371,1765109180652,-198.06140759,5.679e-05,2]
[396767372,1765109180674,-156.99132718,5.679e-05,2]
[396767373,1765109180699,-500.0,5.679e-05,2]
[396767374,1765109180937,-500.0,5.679e-05,2]
[396767375,1765109180962,-500.0,5.679e-05,2]
[396767376,1765109180986,-1875.95183846,5.679e-05,2]
[396767377,1765109181010,-500.0,5.679e-05,2]
[396767378,1765109181032,-246.29621865,5.679e-05,2]
[396767379,1765109181055,-500.0,5.679e-05,2]
[396767380,1765109181077,-500.0,5.679e-05,2]
[396767381,1765109181099,-500.0,5.679e-05,2]
[396767382,1765109181122,-500.0,5.679e-05,2]
[396767383,1765109181146,-1875.95183846,5.679e-05,2]
[396767384,1765109181170,-1875.95183846,5.679e-05,2]
[396767385,1765109181192,-500.0,5.679e-05,2]
[396767386,1765109181213,-649.56106642,5.679e-05,2]
[396767387,1765109181235,-500.0,5.679e-05,2]
[396767388,1765109181257,-500.0,5.679e-05,2]
[396767389,1765109181279,-171.5310471,5.679e-05,2]
[396767390,1765109198333,-500.0,5.678e-05,2]
[396767391,1765109198357,-500.0,5.678e-05,2]
[396767392,1765109198385,-500.0,5.678e-05,2]
[396767393,1765109198410,-500.0,5.678e-05,2]
[396767394,1765109198438,-500.0,5.678e-05,2]
[396767395,1765109198463,-486.11653318,5.678e-05,2]
[396767396,1765109198485,-500.0,5.678e-05,2]
[396767397,1765109198509,-500.0,5.678e-05,2]
[396767398,1765109198533,-395.68192245,5.678e-05,2]
[396767399,1765109198559,-881.69736408,5.68e-05,2]
[396767400,1765109198583,-881.69736408,5.68e-05,2]
[396767401,1765109198607,-881.69736408,5.68e-05,2]
[396767402,1765109198631,-881.69736408,5.68e-05,2]
[396767403,1765109198656,-881.69736408,5.68e-05,2]
[396767404,1765109198680,-881.69736408,5.68e-05,2]
[396767405,1765109198704,-881.69736408,5.68e-05,2]
[396767406,1765109198729,-881.69736408,5.68e-05,2]
[396767407,1765109198754,-881.69736408,5.68e-05,2]
[396767408,1765109198778,-881.69736408,5.68e-05,2]
[396767409,1765109198802,-881.69736408,5.68e-05,2]
[396767410,1765109198826,-881.69736408,5.68e-05,2]
[396767411,1765109198851,-881.69736408,5.68e-05,2]
[396767412,1765109198876,-881.69736408,5.68e-05,2]
[396767413,1765109198901,-881.69736408,5.68e-05,2]
[396767414,1765109198926,-881.69736408,5.68e-05,2]
[396767415,1765109198952,-881.69736408,5.68e-05,2]
[396767416,1765109198979,-881.69736408,5.68e-05,2]
[396767417,1765109199004,-881.69736408,5.68e-05,2]
[396767418,1765109199029,-881.69736408,5.68e-05,2]
[396767419,1765109199058,-27984.25426277,5.681e-05,2]
[396767421,1765109223570,-500.0,5.678e-05,2]
[396767422,1765109223594,-300.0,5.68e-05,2]
[396767423,1765109223620,-881.69736408,5.68e-05,2]
[396767424,1765109223649,-31686.8970861,5.681e-05,2]
[396767425,1765109223672,-2230.315306,5.78e-05,2]
[396767426,1765109223696,-1961.28,5.78e-05,2]
[396767427,1765109223719,-1961.28,5.78e-05,2]
[396767428,1765109223741,-1961.28,5.78e-05,2]
[396767429,1765109223763,-1961.28,5.78e-05,2]
[396767430,1765109223784,-1961.28,5.781e-05,2]
[396767431,1765109223806,-1961.28,5.782e-05,2]
[396767432,1765109223827,-1961.28,5.782e-05,2]
[396767433,1765109223849,-672.13024382,5.782e-05,2]
[396767434,1765109265264,-2465.43215889,5.68e-05,2]
[396767435,1765109265290,-2465.43215889,5.68e-05,2]
[396767436,1765109265318,-2465.43215889,5.68e-05,2]
[396767437,1765109265344,-2465.43215889,5.68e-05,2]
[396767438,1765109265369,-2465.43215889,5.68e-05,2]
[396767439,1765109265396,-2465.43215889,5.68e-05,2]
[396767440,1765109265421,-2465.43215889,5.68e-05,2]
[396767441,1765109265444,-2465.43215889,5.68e-05,2]
[396767442,1765109265471,-2465.43215889,5.68e-05,2]
[396767443,1765109265494,-2465.43215889,5.68e-05,2]
[396767444,1765109265517,-2465.43215889,5.68e-05,2]
[396767445,1765109265545,-2465.43215889,5.68e-05,2]
[396767446,1765109265569,-2465.43215889,5.68e-05,2]
[396767447,1765109265593,-3578.20829551,5.68e-05,2]
[396767448,1765109265615,-604.69348059,5.731e-05,2]
[396767449,1765109265636,-1289.14975618,5.782e-05,2]
[396767450,1765109265658,-1961.28,5.782e-05,2]
[396767451,1765109265680,-1961.28,5.782e-05,2]
[396767452,1765109265703,-1961.28,5.782e-05,2]
[396767453,1765109265727,-1961.28,5.782e-05,2]
[396767454,1765109265751,-1961.28,5.782e-05,2]
[396767455,1765109265773,-1961.28,5.782e-05,2]
[396767456,1765109265802,-709.65040215,5.782e-05,2]
[396767459,1765109292522,-50000.0,5.579e-05,2]
[396767460,1765109318159,-1274.12727157,5.578e-05,2]
[396767461,1765109318184,-1274.12727157,5.578e-05,2]
[396767462,1765109318209,-1274.12727157,5.578e-05,2]
[396767463,1765109318232,-1274.12727157,5.578e-05,2]
[396767464,1765109318255,-1274.12727157,5.578e-05,2]
[396767465,1765109318278,-1274.12727157,5.578e-05,2]
[396767466,1765109318302,-1274.12727157,5.578e-05,2]
[396767467,1765109318326,-1274.12727157,5.578e-05,2]
[396767468,1765109318350,-1274.12727157,5.578e-05,2]
[396767469,1765109318373,-1274.12727157,5.578e-05,2]
[396767470,1765109318400,-1274.12727157,5.578e-05,2]
[396767471,1765109318425,-1274.12727157,5.578e-05,2]
[396767472,1765109318452,-1274.12727157,5.578e-05,2]
[396767473,1765109318476,-165.12405924,5.578e-05,2]
[396767474,1765109318498,-321.74243583,5.578e-05,2]
[396767475,1765109318523,-1274.12727157,5.578e-05,2]
[396767476,1765109318547,-1274.12727157,5.578e-05,2]
[396767477,1765109318571,-1274.12727157,5.578e-05,2]
[396767478,1765109318594,-1274.12727157,5.578e-05,2]
[396767479,1765109318617,-1274.12727157,5.578e-05,2]
[396767480,1765109318643,-26578.84261667,5.579e-05,2]
[396767481,1765109362105,-882.16662764,5.578e-05,2]
[396767482,1765109362128,-882.16662764,5.578e-05,2]
[396767483,1765109362151,-882.16662764,5.578e-05,2]
[396767484,1765109362176,-882.16662764,5.578e-05,2]
[396767485,1765109362202,-882.16662764,5.578e-05,2]
[396767486,1765109362224,-882.16662764,5.578e-05,2]
[396767487,1765109362246,-882.16662764,5.578e-05,2]
[396767488,1765109362269,-882.16662764,5.578e-05,2]
[396767489,1765109362291,-882.16662764,5.578e-05,2]
[396767490,1765109362314,-882.16662764,5.578e-05,2]
[396767491,1765109362336,-882.16662764,5.578e-05,2]
[396767492,1765109362358,-1014.49162178,5.578e-05,2]
[396767493,1765109362380,-1014.49162178,5.578e-05,2]
[396767494,1765109362412,-38267.1838524,5.579e-05,2]
[396767495,1765109390249,-50000.0,5.579e-05,2]
[396767496,1765109408081,-200.0,5.579e-05,2]
[396767497,1765109408112,-49800.0,5.579e-05,2]
[396767500,1765109424842,-15561.21688014,5.579e-05,2]
[396767501,1765109424866,-624.6418288,5.67e-05,2]
[396767502,1765109424888,-787.63,5.681e-05,2]
[396767503,1765109424912,-787.63,5.681e-05,2]
[396767504,1765109424935,-787.63,5.681e-05,2]
[396767505,1765109424957,-787.63,5.778e-05,2]
[396767506,1765109424979,-787.63,5.778e-05,2]
[396767507,1765109424999,-787.63,5.778e-05,2]
[396767508,1765109425022,-250.0,5.781e-05,2]
[396767509,1765109425044,-787.63,5.781e-05,2]
[396767510,1765109425064,-156.0,5.782e-05,2]
[396767511,1765109425085,-151.0,5.783e-05,2]
[396767512,1765109425106,-151.0,5.783e-05,2]
[396767513,1765109425127,-151.0,5.783e-05,2]
[396767514,1765109425149,-151.0,5.783e-05,2]
[396767541,1765109432571,-1245.66745744,5.88e-05,2]
[396767542,1765109432581,-103.57934556,5.882e-05,2]
[396767551,1765109438111,-684.05065444,5.882e-05,2]
[396767552,1765109438121,-500.0,5.882e-05,2]
[396767553,1765109438131,-500.0,5.882e-05,2]
[396767554,1765109438140,-500.0,5.882e-05,2]
[396767555,1765109438150,-500.0,5.882e-05,2]
[396767556,1765109438160,-500.0,5.882e-05,2]
[396767557,1765109438170,-102.22261928,5.882e-05,2]
[396767974,1765109444292,-352.45733984,5.882e-05,2]
[396767985,1765109444398,-45.32004088,5.882e-05,2]
[396767987,1765109444408,-458.81995912,5.882e-05,2]
[396768133,1765109446259,-41.18004088,5.882e-05,2]
[396768134,1765109446270,-500.0,5.882e-05,2]
[396768135,1765109446279,-500.0,5.882e-05,2]
[396768136,1765109446289,-527.00181089,5.882e-05,2]
[396768137,1765109446297,-500.0,5.882e-05,2]
[396768138,1765109446307,-500.0,5.882e-05,2]
[396768139,1765109446316,-151.0,5.883e-05,2]
[396768141,1765109446325,-151.0,5.883e-05,2]
[396768142,1765109446334,-151.0,5.883e-05,2]
[396768143,1765109446343,-151.0,5.883e-05,2]
[396768144,1765109446352,-787.63,5.883e-05,2]
[396768146,1765109446361,-787.63,5.883e-05,2]
[396768147,1765109446370,-787.63,5.883e-05,2]
[396768149,1765109446379,-19661.94693717,5.883e-05,2]
[396768582,1765109450708,-27290.73129106,5.883e-05,2]
[396772529,1765110271320,10000.01,4.882e-05,2]
[396772530,1765110271344,523.9149473,4.882e-05,2]
[396772715,1765110632107,-212.2296424,5.048e-05,2]
[396772716,1765110632116,-156.39723559,5.287e-05,2]
[396773276,1765110643355,-338.3373185,5.287e-05,2]
[396785804,1765111400364,9476.0950527,5.016e-05,2]
[396785805,1765111400388,523.9049473,5.016e-05,2]
[396785806,1765111413948,323.13,5.016e-05,2]
[396786022,1765111832261,-206.86885331,5.187e-05,2]
[396786023,1765111832271,-239.57097629,5.237e-05,2]
[396786810,1765111846496,-349.04247866,5.237e-05,2]
[396786812,1765111846506,-250.0,5.286e-05,2]
[396786814,1765111846516,-166.0,5.287e-05,2]
[396786816,1765111846526,-127.78499744,5.287e-05,2]
[396799132,1765112385459,179.25,0.00015,30]
[396799170,1765112905268,417.437635,5e-05,2]
[396799304,1765113033305,-250.0,5.286e-05,2]
[396799306,1765113033316,-1200.0,5.522e-05,2]
[396799308,1765113033326,-2155.0,5.523e-05,2]
[396799310,1765113033335,-415.0,5.523e-05,2]
[396799312,1765113033345,-166.08453162,5.523e-05,2]
[396799314,1765113033354,-585.56433716,5.523e-05,2]
[396799316,1765113033364,-250.0,5.805e-05,2]
[396799318,1765113033373,-300.0,5.838e-05,2]
[396799320,1765113033382,-300.0,5.839e-05,2]
[396799322,1765113033391,-300.0,5.839e-05,2]
[396799324,1765113033400,-300.0,5.84e-05,2]
[396799326,1765113033410,-1200.0,5.841e-05,2]
[396799328,1765113033420,-3235.2632965,5.848e-05,2]
[396799330,1765113033432,-468.4813716,5.848e-05,2]
[396799332,1765113033441,-644.13242314,5.863e-05,2]
[396799334,1765113033450,-1840.28418103,5.863e-05,2]
[396799336,1765113033459,-520.89482337,5.863e-05,2]
[396799338,1765113033468,-500.0,5.864e-05,2]
[396799340,1765113033477,-500.0,5.864e-05,2]
[396799342,1765113033487,-500.0,5.864e-05,2]
[396799344,1765113033497,-1680.0,6.074e-05,2]
[396799346,1765113033507,-161.0742749,6.258e-05,2]
[396799348,1765113033517,-300.0,6.422e-05,2]
[396799350,1765113033526,-420.0,6.423e-05,2]
[396799352,1765113033535,-151.0,6.425e-05,2]
[396799354,1765113033544,-468.4813716,6.468e-05,2]
[396799356,1765113033553,-198.0,6.562e-05,2]
[396799358,1765113033563,-177.99,6.596e-05,2]
[396799360,1765113033572,-171.63308782,6.67e-05,2]
[396799362,1765113033581,-801.944,6.67e-05,2]
[396799364,1765113033591,-1385.0,6.681e-05,2]
[396799366,1765113033599,-3425.75465816,6.725e-05,2]
[396799368,1765113033609,-500.0,6.77e-05,2]
[396799370,1765113033619,-727.23681613,6.899e-05,2]
[396799372,1765113033628,-355.98,6.91e-05,2]
[396799374,1765113033637,-500.0,6.942e-05,2]
[396799377,1765113033647,-531.82400577,6.943e-05,3]
[396799378,1765113033658,-670.4288512,6.983e-05,2]
[396799380,1765113033667,-500.0,7.01e-05,2]
[396799382,1765113033678,-1064.03194868,7.017e-05,3]
[396799384,1765113033687,-1452.09010053,7.026e-05,2]
[396799386,1765113033696,-164.17088034,7.027e-05,2]
[396799388,1765113033705,-706.00417227,7.046e-05,3]
[396799390,1765113033715,-587.0,7.065e-05,2]
[396799392,1765113033724,-1206.77193216,7.071e-05,2]
[396799394,1765113033734,-404.02045341,7.078e-05,2]
[396799396,1765113033743,-468.4813716,7.088e-05,2]
[396799398,1765113033753,-176.67772079,7.092e-05,3]
[396799400,1765113033762,-152.20582662,7.095e-05,2]
[396799402,1765113033772,-156.57217215,7.161e-05,2]
[396799404,1765113033782,-339.98711161,7.168e-05,2]
[396799406,1765113033791,-273.97048791,7.172e-05,2]
[396799409,1765113033802,-283.13607889,7.177e-05,3]
[396799410,1765113033811,-431.71144943,7.178e-05,2]
[396799412,1765113033820,-500.0,7.191e-05,2]
[396799415,1765113033830,-500.0,7.191e-05,2]
[396799417,1765113033839,-388.55669899,7.192e-05,2]
[396799418,1765113033850,-151.0,7.216e-05,2]
[396799420,1765113033860,-533.96,7.224e-05,2]
[396799423,1765113033870,-500.0,7.27e-05,2]
[396799425,1765113033880,-500.0,7.328e-05,2]
[396799446,1765113033889,-500.0,7.328e-05,2]
[396799452,1765113034114,-151.0,7.353e-05,2]
[396799454,1765113034124,-500.0,7.465e-05,2]
[396799456,1765113034134,-500.0,7.465e-05,2]
[396799458,1765113034143,-500.0,7.465e-05,2]
[396799460,1765113034152,-500.0,7.465e-05,2]
[396799462,1765113034161,-500.0,7.465e-05,2]
[396799464,1765113034171,-500.0,7.465e-05,2]
[396799466,1765113034180,-500.0,7.465e-05,2]
[396799468,1765113034189,-500.0,7.465e-05,2]
[396799470,1765113034198,-500.0,7.465e-05,2]
[396799472,1765113034208,-198.0,7.49e-05,2]
[396799474,1765113034217,-176.99037242,7.49e-05,2]
[396799476,1765113034226,-500.0,7.499e-05,2]
[396799478,1765113034236,-250.0,7.5e-05,2]
[396799481,1765113034245,-690.96591785,7.523e-05,2]
[396799482,1765113034255,-399.31076779,7.536e-05,2]
[396799484,1765113034264,-160.0,7.536e-05,2]
[396799486,1765113034273,-711.95,7.538e-05,2]
[396799488,1765113034282,-300.0,7.566e-05,2]
[396799490,1765113034291,-300.0,7.566e-05,2]
[396799492,1765113034300,-300.0,7.566e-05,2]
[396799494,1765113034309,-300.0,7.566e-05,2]
[396799496,1765113034319,-300.0,7.566e-05,2]
[396799498,1765113034329,-300.0,7.566e-05,2]
[396799500,1765113034338,-300.0,7.566e-05,2]
[396799502,1765113034347,-300.0,7.566e-05,2]
[396799504,1765113034356,-300.0,7.566e-05,2]
[396799506,1765113034365,-300.0,7.566e-05,2]
[396799508,1765113034374,-300.0,7.566e-05,2]
[396799510,1765113034384,-300.0,7.566e-05,2]
[396799512,1765113034393,-300.0,7.566e-05,2]
[396799514,1765113034403,-300.0,7.566e-05,2]
[396799516,1765113034412,-300.0,7.566e-05,2]
[396799518,1765113034426,-600.0,7.566e-05,2]
[396799520,1765113034436,-500.0,7.586e-05,2]
[396799522,1765113034445,-500.0,7.602e-05,2]
[396799524,1765113034454,-355.12796162,7.602e-05,2]
[396799527,1765113034466,-468.4813716,7.707e-05,2]
[396799529,1765113034475,-500.0,7.739e-05,2]
[396799530,1765113034484,-823.0,7.772e-05,2]
[396799531,1765113034494,-465.08899665,7.798e-05,2]
[396799532,1765113034503,-889.94,7.852e-05,2]
[396799533,1765113034512,-837.16019398,7.893e-05,2]
[396799534,1765113034521,-506.88613665,7.965e-05,2]
[396799535,1765113034531,-2514.0,8e-05,2]
[396799536,1765113034540,-500.0,8e-05,2]
[396799537,1765113034550,-423.16940527,8.038e-05,2]
[396799538,1765113034559,-176.99037241,8.129e-05,2]
[396799539,1765113034568,-761.70492949,8.137e-05,2]
[396799540,1765113034578,-1067.93,8.166e-05,2]
[396799541,1765113034588,-3425.75465816,8.199e-05,2]
[396799542,1765113034597,-500.0,8.219e-05,2]
[396799543,1765113034606,-500.0,8.219e-05,2]
[396799544,1765113034615,-274.9693616,8.219e-05,2]
[396799545,1765113034625,-500.0,8.219e-05,2]
[396799546,1765113034634,-500.0,8.219e-05,2]
[396799547,1765113034644,-151.0,8.219e-05,2]
[396799548,1765113034653,-720.0,8.323e-05,2]
[396799549,1765113034663,-500.0,8.47e-05,2]
[396799550,1765113034672,-1245.91,8.48e-05,2]
[396799551,1765113034681,-200.524785,8.493e-05,2]
[396799552,1765113034691,-500.0,8.493e-05,2]
[396799553,1765113034701,-572.542,8.523e-05,2]
[396799554,1765113034710,-415.0,8.523e-05,2]
[396799555,1765113034720,-151.674087,8.523e-05,2]
[396799556,1765113034729,-1152.0,8.549e-05,2]
[396799557,1765113034739,-500.0,8.713e-05,2]
[396799558,1765113034749,-500.0,8.713e-05,2]
[396799559,1765113034758,-38000.0,8.714e-05,2]
[396799560,1765113034770,-500.0,8.722e-05,2]
[396799561,1765113034779,-500.0,8.722e-05,2]
[396799562,1765113034787,-10197.71734005,8.723e-05,2]
[396799599,1765113038695,-500.0,5.864e-05,2]
[396799601,1765113038705,-500.0,5.864e-05,2]
[396799603,1765113038714,-500.0,5.864e-05,2]
[396799605,1765113038723,-500.0,5.864e-05,2]
[396799607,1765113038734,-854.461,7.566e-05,2]
[396799609,1765113038742,-2913.55254489,8.723e-05,2]
[396799622,1765113038854,-17259.578052,8.723e-05,2]
[396799848,1765113041033,-915.52853572,8.723e-05,2]
[396800123,1765113043928,-6713.62352734,8.723e-05,2]